Cogmind - Beta 14 @@@ ROGUE MODE // 2025.01.09 @ 16:34:43 Player: mm79 Result: Self-destructed Performance ------------- Evolutions (2) 1000 Regions Visited (5) 1000 Robots Destroyed (16) 80 Value Destroyed (340) 340 Prototype IDs (25) 500 Alien Tech Used (0) 0 Bonus (300) 300 TOTAL SCORE: 3220 Bonus ------- Aligned with FarCom 300 Cogmind --------- Core Integrity 550/550 Matter 252/300 Energy 250/250 System Corruption 0% Temperature Cool (0) Movement Rolling (130) Ox2 Location -8/Materials Parts ------- > --- POWER (1) -------- Ion Engine > --- PROPULSION (3) --- Light Treads Armored Treads Compact Wheel > --- UTILITY (5) ------ Cooling System Large Storage Unit Machine Analyzer Reactive Plating System Shield > --- WEAPON (2) ------- Heavy Particle Cannon Light Cannon > --- INVENTORY (15) --- Light Ion Engine Light Treads Wheel Cooling System Large Matter Pod (0) High-capacity Matter Pod (65) PSU Rigger Medium Laser Beam Cannon Particle Cannon Advanced Beam Cannon Assault Rifle Light Cannon Missile Launcher Scythe Peak State ------------ > --- POWER ------------ Ion Engine > --- PROPULSION ------- Light Treads Armored Treads Compact Wheel > --- UTILITY ---------- Cooling System Large Storage Unit Machine Analyzer Reactive Plating System Shield > --- WEAPON ----------- Light Cannon Scythe > --- INVENTORY -------- Light Ion Engine Light Treads Wheel Cooling System Large Matter Pod High-capacity Matter Pod PSU Rigger Medium Laser Beam Cannon Particle Cannon Advanced Beam Cannon Heavy Particle Cannon Assault Rifle Light Cannon Missile Launcher [Rating: 25] Favorites ----------- Power Ion Engine Engine Ion Engine Propulsion Light Treads Treads Light Treads Wheel Wheel Utility Large Storage Unit Device Seismic Detector Storage Large Storage Unit Processor Machine Analyzer Hackware System Shield Protection Reactive Plating Weapon Light Cannon Energy Gun Medium Laser Energy Cannon Beam Cannon Ballistic Gun Assault Rifle Ballistic Cannon Light Cannon Special Weapon Mining Laser Slashing Weapon Scythe Build | -11 -10 -10 -10 -9 -8 ------- Run | Yrd Mat Min Exi Min Mat Slots Evolved 4 | . . . . . 4 Power . | . . . . . . Propulsion 1 | . . . . . 1 Utility 3 | . . . . . 3 Weapon . | . . . . . . Parts Attached 36 | 6 12 2 . . 16 Power 2 | . 1 . . . 1 Engine 2 | . 1 . . . 1 Core . | . . . . . . Reactor . | . . . . . . Propulsion 11 | 2 4 . . . 5 Treads 5 | 1 2 . . . 2 Leg . | . . . . . . Wheel 6 | 1 2 . . . 3 Hover . | . . . . . . Flight . | . . . . . . Utility 13 | 2 3 1 . . 7 Device 6 | 1 1 1 . . 3 Storage 4 | 1 2 . . . 1 Processor 1 | . . . . . 1 Hackware 1 | . . . . . 1 Protection 1 | . . . . . 1 Artifact . | . . . . . . Weapon 10 | 2 4 1 . . 3 Energy Gun 1 | 1 . . . . . Energy Cannon 5 | . 2 1 . . 2 Ballistic Gun 1 | 1 . . . . . Ballistic Cannon 1 | . 1 . . . . Launcher . | . . . . . . Special Weapon 1 | . 1 . . . . Impact Weapon . | . . . . . . Slashing Weapon 1 | . . . . . 1 Piercing Weapon . | . . . . . . Special Melee Weapon . | . . . . . . Unidentified Prototypes . | . . . . . . Parts Lost 2 | . . 2 . . . Power . | . . . . . . Propulsion . | . . . . . . Utility 1 | . . 1 . . . Weapon 1 | . . 1 . . . Highest Loss Streak 2 | . . 2 . . . To Critical Strikes . | . . . . . . Average Slot Usage (%) 87 | . 85 81 85 85 98 Engine 1 | . . . . . 8 Treads 15 | . 14 14 14 14 18 Wheel 12 | . 13 14 14 14 9 Device 13 | . 13 14 14 14 12 Storage 13 | . 14 14 14 14 12 Processor 1 | . . . . . 5 Hackware 1 | . . . . . 5 Protection 1 | . . . . . 8 Energy Cannon 11 | . 12 10 14 14 7 Ballistic Gun 1 | . 2 . . . . Ballistic Cannon 11 | . 11 14 14 14 9 Peak Build Rating 25 | 6 8 7 8 8 25 Average Rating 9 | 4 6 6 7 8 22 On Entrance 6 | . 6 7 7 8 8 Naked Turns . | . . . . . . Heaviest Build 51 | 10 27 27 27 27 51 Greatest Support 16 | 10 10 10 10 10 16 Greatest Overweight (x) 5 | . 2 2 2 2 5 Average Overweight (x) 2 | . 1 2 2 2 2 Largest Inventory Capacity 15 | 8 15 15 15 15 15 Average Capacity 14 | 7 14 15 15 15 15 Most Carried 15 | 7 15 15 14 14 15 Average Carried 13 | 4 13 14 13 14 14 Final Capacity 15 | 8 15 15 15 15 15 Final Carried 15 | 7 15 13 14 14 15 Class Distribution -------------------- 100% | Mutant Dominant Class ---------------- Mutant | -10/Materials Mutant | -10/Mines Mutant | -10/Exiles Mutant | -9/Mines Mutant | -8/Materials Resources | -11 -10 -10 -10 -9 -8 ----------- Run | Yrd Mat Min Exi Min Mat Matter Collected 674 | 263 399 12 . . . Remotely . | . . . . . . Salvage Created 539 | 11 528 . . . . Parts 33 | 4 29 . . . . Haulers Intercepted . | . . . . . . Recyclers Shooed . | . . . . . . Parts Field Recycled . | . . . . . . Retrieved Matter . | . . . . . . Parts Self-Destructed . | . . . . . . Prevented . | . . . . . . Kills | -11 -10 -10 -10 -9 -8 ------- Run | Yrd Mat Min Exi Min Mat Combat Hostiles Destroyed 13 | . 13 . . . . Cannons 13 | . 13 . . . . Classes Destroyed 4 | 1 3 . . . . Tunneler 1 | 1 . . . . . Recycler 2 | . 2 . . . . Swarmer 6 | . 6 . . . . Grunt 7 | . 7 . . . . Best Kill Streak 4 | 1 4 . . . . Combat Bots Only 3 | . 3 . . . . Max Kills in Single Turn 1 | 1 1 . . . . Gunslinging . | . . . . . . Exploded . | . . . . . . Melee . | . . . . . . Uniques/NPCs Destroyed . | . . . . . . Combat | -11 -10 -10 -10 -9 -8 -------- Run | Yrd Mat Min Exi Min Mat Hostile Shots Fired 37 | . 27 10 . . . Missed 9 | . 5 4 . . . Damage Taken 452 | . 219 233 . . . Core 76 | . 38 38 . . . Absorbed by Shields . | . . . . . . Core Remaining (%) 84 | 100 . . . 69 . Volleys Fired 33 | 1 30 . . . 2 Largest 2 | 2 2 . . . 2 Hottest 110 | 70 100 . . . 110 Shots Fired 61 | 2 56 . . . 3 Gun 7 | 2 5 . . . . Cannon 51 | . 48 . . . 3 Launcher . | . . . . . . Special 3 | . 3 . . . . Kinetic 29 | 1 26 . . . 2 Thermal 32 | 1 30 . . . 1 Explosive . | . . . . . . Electromagnetic . | . . . . . . Robot Hit Streak 7 | 1 7 . . . 3 Robot Miss Streak 2 | 1 2 . . . 2 Penetration Max . | . . . . . . Secondary Targets . | . . . . . . Shots Hit Robots 32 | 1 29 . . . 2 Core Hits 17 | 1 16 . . . . Critical Kills . | . . . . . . Critical Parts Destroyed . | . . . . . . Critical Strikes . | . . . . . . Melee Attacks 5 | . . . . . 5 Impact . | . . . . . . Slashing 5 | . . . . . 5 Piercing . | . . . . . . Sneak Attacks . | . . . . . . Combat Hostiles . | . . . . . . Follow-up Attacks . | . . . . . . Damage Inflicted 605 | 12 536 . . . 57 Guns 38 | 12 26 . . . . Cannons 524 | . 504 . . . 20 Explosions . | . . . . . . Melee 37 | . . . . . 37 Ramming 6 | . 6 . . . . Kinetic 165 | 12 133 . . . 20 Thermal 397 | . 397 . . . . Explosive . | . . . . . . Electromagnetic . | . . . . . . Impact . | . . . . . . Slashing 37 | . . . . . 37 Piercing . | . . . . . . Highest Corruption . | . . . . . . Average Corruption . | . . . . . . Corruption Purged . | . . . . . . Corruption Blocked . | . . . . . . Overload Shots . | . . . . . . Overflow Damage 17 | . . . . . 17 Projectiles 17 | . . . . . 17 Explosions . | . . . . . . Melee . | . . . . . . Knockbacks 2 | . 1 . . . 1 Impact . | . . . . . . Kinetic 2 | . 1 . . . 1 Secondary . | . . . . . . Self-Inflicted Damage 2 | . 2 . . . . Shots . | . . . . . . Rammed 2 | . 2 . . . . Targets Rammed 2 | . 2 . . . . Kicked . | . . . . . . Crushed . | . . . . . . Highest Temperature 84 | . 84 . . . . Average Temperature 26 | . 26 . . . . Received Heat Transfer 84 | . 84 . . . . Siege Activations . | . . . . . . Robots Corrupted . | . . . . . . Combat Hostiles . | . . . . . . Parts Fried . | . . . . . . Impact Corruptions . | . . . . . . Robots Melted . | . . . . . . Combat Hostiles . | . . . . . . Parts Melted . | . . . . . . Heat Transferred 814 | . 814 . . . . Parts Sabotaged . | . . . . . . Parts Stolen . | . . . . . . Parts Stripped . | . . . . . . Power Chain Reactions . | . . . . . . Alert | -11 -10 -10 -10 -9 -8 ------- Run | Yrd Mat Min Exi Min Mat Peak Influence 215 | 5 215 79 . . 25 Initial 79 | . 3 79 . . . Average 71 | 1 107 74 . . 8 Maximum Alert Level 1 | . 1 . . . . Low Security (%) 96 | 100 93 100 . 100 100 Level 1 3 | . 6 . . . . Level 2 . | . . . . . . Level 3 . | . . . . . . Level 4 . | . . . . . . Level 5 . | . . . . . . High Security . | . . . . . . Max Security . | . . . . . . Squads Dispatched 7 | . 5 . . . 2 Investigation 4 | . 4 . . . . Extermination . | . . . . . . Reinforcement 3 | . 1 . . . 2 Assault . | . . . . . . Garrison . | . . . . . . Intercept . | . . . . . . Searches Triggered . | . . . . . . Construction Impeded . | . . . . . . Haulers Reinforced . | . . . . . . Active Scanning Responses . | . . . . . . Cargo Convoy Interrupts . | . . . . . . Stealth | -11 -10 -10 -10 -9 -8 --------- Run | Yrd Mat Min Exi Min Mat Distress Signals 1 | . 1 . . . . Communications Jammed . | . . . . . . Distress Signals . | . . . . . . Times Spotted 35 | . 31 1 . . 3 Peak Tracking Total 6 | . 6 1 . . 3 Tactical Retreats 3 | . 2 1 . . . Traps | -11 -10 -10 -10 -9 -8 ------- Run | Yrd Mat Min Exi Min Mat Traps Triggered 1 | . 1 . . . . Indirectly . | . . . . . . Trap Hack Attempts . | . . . . . . Triggered . | . . . . . . Disarmed . | . . . . . . Reprogrammed . | . . . . . . Reused . | . . . . . . Traps Extracted . | . . . . . . Installed . | . . . . . . Triggered . | . . . . . . Machines | -11 -10 -10 -10 -9 -8 ---------- Run | Yrd Mat Min Exi Min Mat Machines Disabled 1 | . 1 . . . . Max in Single Turn 1 | . 1 . . . . Machines Repaired . | . . . . . . Machines Dismantled . | . . . . . . Machines Sabotaged . | . . . . . . Overloaded Fab Kills . | . . . . . . Hacking | -11 -10 -10 -10 -9 -8 --------- Run | Yrd Mat Min Exi Min Mat Machines Accessed 11 | . 9 . 1 . 1 Terminals 8 | . 7 . . . 1 Fabricators . | . . . . . . Repair Stations . | . . . . . . Recycling Units 2 | . 2 . . . . Scanalyzers . | . . . . . . Garrison Access . | . . . . . . Total Hacks 35 | . 29 . 1 . 5 Successful 18 | . 14 . 1 . 3 Failed 16 | . 14 . . . 2 Catastrophic 1 | . . . . . 1 Database Lockouts 1 | . 1 . . . . Manual 29 | . 23 . 1 . 5 Terminals 31 | . 26 . . . 5 Fabricators . | . . . . . . Repair Stations . | . . . . . . Recycling Units 3 | . 3 . . . . Scanalyzers . | . . . . . . Garrison Access . | . . . . . . Terminal Hacks 8 | . 7 . 1 . . Robot Analysis 1 | . 1 . . . . Prototype ID Bank 1 | . 1 . . . . Terminal Index 1 | . 1 . . . . Unreport Threat 1 | . 1 . . . . Locate Traps 1 | . 1 . . . . Hauler Manifests 1 | . 1 . . . . Zone Layout 1 | . 1 . . . . Derelict Proto ID Bank 1 | . . . 1 . . Fabricator Hacks . | . . . . . . Repair Station Hacks . | . . . . . . Recycling Unit Hacks . | . . . . . . Scanalyzer . | . . . . . . Garrison Access Hacks . | . . . . . . Unauthorized Hacks 10 | . 7 . . . 3 Terminals 7 | . 4 . . . 3 Track 2 | . 1 . . . 1 Botnet 3 | . 2 . . . 1 Operators 2 | . 1 . . . 1 Fabricators . | . . . . . . Repair Stations . | . . . . . . Recycling Units 3 | . 3 . . . . Reject 1 | . 1 . . . . Tunnel 2 | . 2 . . . . Scanalyzers . | . . . . . . Garrison Access . | . . . . . . Data Cores Recovered . | . . . . . . Used . | . . . . . . Hacking Detections 9 | . 8 . . . 1 Full Trace Events 1 | . 1 . . . . Feedback Events . | . . . . . . Feedback Blocked . | . . . . . . Robot Schematics Acquired . | . . . . . . Robots Built . | . . . . . . Authchips . | . . . . . . Time . | . . . . . . Total Robot Build Rating . | . . . . . . Part Schematics Acquired . | . . . . . . Parts Built . | . . . . . . Authchips . | . . . . . . Time . | . . . . . . Total Part Build Rating . | . . . . . . Parts Repaired . | . . . . . . Time . | . . . . . . Parts Recycled . | . . . . . . Recycled Matter . | . . . . . . Retrieved Matter . | . . . . . . Retrieved Components . | . . . . . . Parts Scanalyzed . | . . . . . . Part Schematics Acquired . | . . . . . . Parts Damaged . | . . . . . . Bothacking | -11 -10 -10 -10 -9 -8 ------------ Run | Yrd Mat Min Exi Min Mat Used RIF Installer . | . . . . . . Robots Hacked . | . . . . . . Non-combat . | . . . . . . Combat . | . . . . . . Robot Hacks Applied . | . . . . . . Relay Couplers Released . | . . . . . . Fabnet Peak Effective % . | . . . . . . Robots Rewired . | . . . . . . Allies Hacked . | . . . . . . Hacks Repelled . | . . . . . . Allies | -11 -10 -10 -10 -9 -8 -------- Run | Yrd Mat Min Exi Min Mat Total Allies . | . . . . . . Largest Group . | . . . . . . Highest-Rated Group . | . . . . . . Highest-Rated Ally . | . . . . . . Total Orders . | . . . . . . Ally Attacks . | . . . . . . Total Damage . | . . . . . . Kills . | . . . . . . Allies Corrupted . | . . . . . . Allies Melted . | . . . . . . Intel | -11 -10 -10 -10 -9 -8 ------- Run | Yrd Mat Min Exi Min Mat Robot Analysis Total 1 | . 1 . . . . Derelict Logs Recovered 1 | . . 1 . . . Drone Launches . | . . . . . . Drone Recoveries . | . . . . . . Exploration | -11 -10 -10 -10 -9 -8 ------------- Run | Yrd Mat Min Exi Min Mat Turns Passed 2066 | 77 1003 260 238 75 413 Spaces Moved 1531 | 70 692 235 216 69 249 Core 5 | 5 . . . . . Treads . | . . . . . . Legs . | . . . . . . Wheels 1526 | 65 692 235 216 69 249 Hover . | . . . . . . Flight . | . . . . . . Fastest Speed 50 | 50 80 110 110 110 125 Average Speed 112 | 77 108 110 110 110 134 Slowest Speed 155 | 80 110 110 110 110 155 Overloaded Moves . | . . . . . . Propulsion Burnouts . | . . . . . . Robots Hopped . | . . . . . . Cave-ins Triggered . | . . . . . . Exploration Rate (%) 41 | 4 97 42 60 23 23 Regions Visited 5 Branch Regions 3 Pre-discovered Areas 3 | . 2 1 . . . Known Exits Taken . | . . . . . . Unknown Exits Taken 5 | 1 1 1 1 1 . Scrap Searched 1 | . . 1 . . . Spaces Dug 7 | . 3 . . . 4 Terrain Destroyed 8 | . 3 . . . 5 Melee 4 | . . . . . 4 Projectile 4 | . 3 . . . 1 AOE . | . . . . . . Terrain Rammed . | . . . . . . Walls Destroyed . | . . . . . . Machines Disabled . | . . . . . . Actions | -11 -10 -10 -10 -9 -8 --------- Run | Yrd Mat Min Exi Min Mat Total 1796 | 87 874 236 216 68 315 Wait 156 | 4 127 . . . 25 Move 1526 | 69 691 234 215 68 249 Hop . | . . . . . . Pick Up 26 | 7 9 . 1 . 9 Fast Attach 9 | 6 . . . . 3 Attach 9 | . 1 2 . . 6 Detach 4 | . 1 . . . 3 Swap 18 | . 11 . . . 7 Drop 8 | . 2 . . . 6 Fire 33 | 1 30 . . . 2 Melee 5 | . . . . . 5 Ram 2 | . 2 . . . . Kick . | . . . . . . Crush . | . . . . . . Escape Stasis . | . . . . . . Rewire . | . . . . . . Trap . | . . . . . . Miscellaneous . | . . . . . . Route ------- -11/Scrapyard -10/Materials (discovered 4 exits: [*Mat x3] / [*Min]) -10/Mines (discovered 2 exits: [*Mat] / *Exi) -10/Exiles -9/Mines (discovered 2 exits: *Mat x2) -8/Materials History --------- Turn | Location | Event 23 | -11/Scrapyard | Discovered new exit (range 15) 78 | -11/Scrapyard | Entered Materials 328 | -10/Materials | Build established: Mutant 351 | -10/Materials | Discovered new exit (range 8) 564 | -10/Materials | Discovered new exit (range 15) 662 | -10/Materials | Discovered new exit (range 8) 678 | -10/Materials | Central database locked down 889 | -10/Materials | Discovered new exit (range 16) 1081 | -10/Materials | Entered Mines 1132 | -10/Mines | Learned location of Zion (-7) 1144 | -10/Mines | Deemed a non-threat by the Exiles lab entrance 1144 | -10/Mines | Discovered new exit (range 5) 1199 | -10/Mines | Discovered new exit (range 9) 1341 | -10/Mines | Entered Exiles 1371 | -10/Exiles | Met 8R-AWN 1388 | -10/Exiles | Met EX-HEX 1420 | -10/Exiles | Met EX-BIN 1440 | -10/Exiles | Aligned with FarCom system 1442 | -10/Exiles | Given EX-Vault access code 1467 | -10/Exiles | Opened EX-Vault 1472 | -10/Exiles | Found PSU Rigger 1494 | -10/Exiles | Warned to stay clear of 0b10 Research branches 1528 | -10/Exiles | Met EX-DEC 1567 | -10/Exiles | Discovered new exit (range 12) 1579 | -10/Exiles | Left Exiles lab with PSU Rigger 1579 | -10/Exiles | Entered Mines 1618 | -9/Mines | Discovered new exit (range 3) 1629 | -9/Mines | Discovered new exit (range 7) 1654 | -9/Mines | Entered Materials 1654 | -8/Materials | Evolved 4 slots: Propulsion x1, Utility x3 2067 | -8/Materials | Self-destructed Last Messages --------------- Tracking enabled and active. >>Trojan(Botnet) Trojan loaded successfully. Testing... Terminal linked with 0 systems. Awaiting botnet instructions. >>Trojan(Operators) Trojan loaded successfully. Testing... Operator tracking enabled and active. 01963_ K-01 Serf cleans the Atomic Centrifuge. 01998_ K-01 Serf collects debris. 02015_ >> Machine Analyzer network decryption results: 02015_ Terminal x2 02048_ K-01 Serf cleans the Atomic Centrifuge. 02067_ ALERT: Hostiles spotted, dispatching reinforcements to Terminal M010. Map ----- +----------------------------------------------------+ | ?????????????????????????????????????????????????? | | ?????????????????????????????????????????????????? | | ?????????????????????????????????????????????????? | | ?????????????????????????????????????????????????? | | ?????????????????????????????????????????????????? | | ?????????????????????????????????????????????????? | | ?????????????????????????????????????????????????? | | ?????????????????????????????????????????????????? | | ?????????????????????????????????????????????????? | | ?????????????????????????????????????????????????? | | ???????????????????????????????????????? ? ?????? | | ???????????????????????????????????????? ????? | | ???????????????????????????????????????? T ????? | | ???????????????????????????????????????? o ?????? | | ???????????????????????????????????????? ?????? | | ???????????????????????????????????????? #?????? | | ???????????????????????????????????????? #?????? | | ???????????????????????????????????????# #?????? | | ???????????????????????????????????????#k #?????? | | ???????????????????????????????????????# #?????? | | ???????????????????????????????????????# #?????? | | ???????????????????#######?##?????????## ##????? | | ???????????????????# ##;###########u ###### | | ???????????????????# ! k k | | ???????????????????# ! T % | | ???????????????????# @ k | | ???????????????????# ##########+### ###+## | | ?????????????????#####k###### ## ##????? | | ?????????????????# ## ## #?????? | | ?????????????????# ## """ """ ## #?????? | | ?????????????????# ## """ """ ## #???"?? | | ?????????????????# """w !! ## """ """ ## #???T?? | | ?????????????????# """ !! ## ## #???"?? | | ?????????????????# """ ! ## ## #?????? | | ?????????????????# ## #? ?????? | | ?????????????????# ############? ?????? | | ?????????????????####+##/###???????????? ????? | | ????????????????????# ## #?????????????? ????? | | ????????????????????# ## #?????????????? ##???? | | ????????????????????# ## #??????????????# ###????? | | ?????????????????#### ## #??????????????? ???????? | | ?????????????????# ## #???????????????????????? | | ???######????????# ##### #???????????????????????? | | ???# ####### #???# #######?????????????????? | | ???# + #???# # #????????o????????? | | / ""T"" #### #???# # #?????????????????? | | ?????"""""????# ##### # #?????????T???????? | | ????? ???????# + #?????????????????? | | ?????????????#####+## # #?????????????????? | | ?????????????# # # [ #?????????????????? | +----------------------------------------------------+ Best States ------------- Heat Dissipation 63 Energy Generation 10 Energy Capacity 250 Matter Stores 435 Matter Capacity 500 Sight Range 16 Terrain Scan Density 10 Armor Coverage 150 Resistance: KI 20 Evasion (%) 44 Recoil Reduction 2 Defensive Hacking 10 Item Schematics ----------------- None Robot Schematics ------------------ None Fabricated ------------ Nothing Alien Tech Used ----------------- None Achievements -------------- None Challenges ------------ None Game ------ Seed ImprinterLightKinecellerator Manual? 0 Play Time 00:31:49 Cumulative 15.9 hours Start 2025.01.09 @ 15:59:26 End 2025.01.09 @ 16:34:43 Sessions 1 Manual Loads 0 Difficulty Rogue Special Mode None Game No. 14 Rogue 14 Adventurer 0 Explorer 0 Win Type - Total 0 Types 0/0/0/0/0/0/0/0/0 Lore% 6 Gallery% 15 Achievement% 17 Wizard Run 0 Options --------- Layout 1 ASCII 0 Keyboard 0 Movement Mouse Keybinds 0 Fullscreen 1 Font 24/Smallcaps Map View 50x35 Zoom Use 0% Tactical HUD 1 Map Filters NONE Filters NONE Steam 0 RUN: d902cb58-f5c4-465b-a026-7f5ed7691270